[Event "Titled Tuesday Blitz February 07 Late 2023"]
[White "Averjanov, Alexey"]
[Black "Bozorov, Makhsum"]
[WhiteFideId "14109867"]
[BlackFideId "14201330"]
[WhiteElo "2399"]
[BlackElo "2145"]
[Result "1-0"]
[Round "07"]
[TimeControl "180+2"]
[Date "2023.02.07"]
[WhiteClock "0:01:47"]
[BlackClock "0:00:12"]

1. d4 {[%clk 0:02:50]}  Nf6 {[%clk 0:02:57]} 2. c4 {[%clk 0:02:51]}  g6 {[%clk 0:02:56]} 3. Nc3 {[%clk 0:02:50]}  d5 {[%clk 0:02:56]} 4. cxd5 {[%clk 0:02:50]}  Nxd5 {[%clk 0:02:57]} 5. e4 {[%clk 0:02:51]}  Nxc3 {[%clk 0:02:57]} 6. bxc3 {[%clk 0:02:52]}  Bg7 {[%clk 0:02:57]} 7. Nf3 {[%clk 0:02:53]}  c5 {[%clk 0:02:57]} 8. Be3 {[%clk 0:02:54]}  Qa5 {[%clk 0:02:56]} 9. Qd2 {[%clk 0:02:54]}  Nc6 {[%clk 0:02:57]} 10. Rc1 {[%clk 0:02:53]}  cxd4 {[%clk 0:02:57]} 11. cxd4 {[%clk 0:02:54]}  Qxd2+ {[%clk 0:02:57]} 12. Kxd2 {[%clk 0:02:55]}  O-O {[%clk 0:02:57]} 13. d5 {[%clk 0:02:55]}  Rd8 {[%clk 0:02:57]} 14. Ke1 {[%clk 0:02:56]}  Na5 {[%clk 0:02:56]} 15. Bg5 {[%clk 0:02:55]}  Bd7 {[%clk 0:02:53]} 16. Bd3 {[%clk 0:02:55]}  Rdc8 {[%clk 0:02:49]} 17. Ke2 {[%clk 0:02:55]}  e6 {[%clk 0:02:47]} 18. Rxc8+ {[%clk 0:02:53]}  Rxc8 {[%clk 0:02:46]} 19. Rc1 {[%clk 0:02:54]}  Rxc1 {[%clk 0:02:45]} 20. Bxc1 {[%clk 0:02:55]}  exd5 {[%clk 0:02:43]} 21. exd5 {[%clk 0:02:56]}  b5 {[%clk 0:02:39]} 22. Be3 {[%clk 0:02:56]}  a6 {[%clk 0:02:38]} 23. Nd4 {[%clk 0:02:56]}  Nc4 {[%clk 0:02:29]} 24. Bxc4 {[%clk 0:02:54]}  bxc4 {[%clk 0:02:30]} 25. Kd2 {[%clk 0:02:52]}  Bxd4 {[%clk 0:02:05]} 26. Bxd4 {[%clk 0:02:53]}  Kf8 {[%clk 0:02:06]} 27. Kc3 {[%clk 0:02:53]}  Bb5 {[%clk 0:01:56]} 28. Kb4 {[%clk 0:02:53]}  c3 {[%clk 0:01:52]} 29. Bxc3 {[%clk 0:02:50]}  Bf1 {[%clk 0:01:52]} 30. g3 {[%clk 0:02:46]}  Ke8 {[%clk 0:01:51]} 31. Kc5 {[%clk 0:02:45]}  Kd7 {[%clk 0:01:51]} 32. Be5 {[%clk 0:02:41]}  Be2 {[%clk 0:01:45]} 33. Bf4 {[%clk 0:02:40]}  Bf1 {[%clk 0:01:44]} 34. a3 {[%clk 0:02:39]}  Be2 {[%clk 0:01:44]} 35. Kd4 {[%clk 0:02:39]}  Bf1 {[%clk 0:01:40]} 36. Ke5 {[%clk 0:02:39]}  Bc4 {[%clk 0:01:37]} 37. d6 {[%clk 0:02:38]}  h5 {[%clk 0:01:29]} 38. Kf6 {[%clk 0:02:37]}  Bb3 {[%clk 0:01:30]} 39. h3 {[%clk 0:02:32]}  Be6 {[%clk 0:01:26]} 40. h4 {[%clk 0:02:27]}  Bb3 {[%clk 0:01:22]} 41. Be5 {[%clk 0:02:22]}  Ke8 {[%clk 0:01:19]} 42. Bc3 {[%clk 0:02:20]}  Bc4 {[%clk 0:01:16]} 43. a4 {[%clk 0:02:19]}  Bb3 {[%clk 0:01:12]} 44. a5 {[%clk 0:02:19]}  Bc4 {[%clk 0:01:12]} 45. Bb4 {[%clk 0:02:19]}  Bb3 {[%clk 0:01:11]} 46. Ke5 {[%clk 0:02:19]}  Bc4 {[%clk 0:01:10]} 47. Kd4 {[%clk 0:02:19]}  Bb3 {[%clk 0:01:10]} 48. Kc5 {[%clk 0:02:20]}  Kd7 {[%clk 0:01:08]} 49. Kb6 {[%clk 0:02:17]}  Bc4 {[%clk 0:01:08]} 50. Ba3 {[%clk 0:02:18]}  Be2 {[%clk 0:01:07]} 51. Kc5 {[%clk 0:02:17]}  Bd1 {[%clk 0:01:05]} 52. Kd5 {[%clk 0:02:17]}  Bb3+ {[%clk 0:01:05]} 53. Ke5 {[%clk 0:02:18]}  Ke8 {[%clk 0:01:05]} 54. f3 {[%clk 0:02:17]}  Bd1 {[%clk 0:01:03]} 55. Kf4 {[%clk 0:02:17]}  Kd7 {[%clk 0:00:55]} 56. g4 {[%clk 0:02:17]}  Be2 {[%clk 0:00:52]} 57. Ke3 {[%clk 0:02:16]}  Bd1 {[%clk 0:00:51]} 58. Kf4 {[%clk 0:02:16]}  Be2 {[%clk 0:00:51]} 59. Bb4 {[%clk 0:02:16]}  Bd1 {[%clk 0:00:51]} 60. Kg3 {[%clk 0:02:15]}  Ke6 {[%clk 0:00:51]} 61. Bc5 {[%clk 0:02:13]}  Be2 {[%clk 0:00:50]} 62. Kf4 {[%clk 0:02:11]}  Bd1 {[%clk 0:00:50]} 63. Kg5 {[%clk 0:02:09]}  Bxf3 {[%clk 0:00:46]} 64. gxh5 {[%clk 0:02:09]}  Bxh5 {[%clk 0:00:32]} 65. Kh6 {[%clk 0:02:09]}  Be2 {[%clk 0:00:30]} 66. Kg7 {[%clk 0:02:07]}  Bc4 {[%clk 0:00:26]} 67. Kf8 {[%clk 0:02:07]}  Kd7 {[%clk 0:00:27]} 68. Kg7 {[%clk 0:02:07]}  Bb3 {[%clk 0:00:26]} 69. Kf6 {[%clk 0:02:07]}  Bc4 {[%clk 0:00:26]} 70. Ke5 {[%clk 0:02:07]}  Bb3 {[%clk 0:00:26]} 71. Be3 {[%clk 0:02:07]}  Ba2 {[%clk 0:00:25]} 72. Bf4 {[%clk 0:02:07]}  Bb3 {[%clk 0:00:26]} 73. Kd4 {[%clk 0:02:07]}  Kc6 {[%clk 0:00:25]} 74. Kc3 {[%clk 0:02:06]}  Be6 {[%clk 0:00:24]} 75. Bg3 {[%clk 0:02:05]}  Kb5 {[%clk 0:00:20]} 76. Kd4 {[%clk 0:02:05]}  Kxa5 {[%clk 0:00:16]} 77. Kc5 {[%clk 0:02:05]}  Bd7 {[%clk 0:00:15]} 78. Be1+ {[%clk 0:01:59]}  Ka4 {[%clk 0:00:14]} 79. Kb6 {[%clk 0:02:00]}  Kb3 {[%clk 0:00:12]} 80. Kc7 {[%clk 0:02:00]}  Be6 {[%clk 0:00:10]} 81. d7 {[%clk 0:02:00]}  Bxd7 {[%clk 0:00:10]} 82. Kxd7 {[%clk 0:02:01]}  f5 {[%clk 0:00:11]} 83. Ke6 {[%clk 0:01:58]}  f4 {[%clk 0:00:10]} 84. Ke5 {[%clk 0:01:55]}  f3 {[%clk 0:00:09]} 85. Ke4 {[%clk 0:01:55]}  a5 {[%clk 0:00:09]} 86. Kxf3 {[%clk 0:01:55]}  a4 {[%clk 0:00:10]} 87. Bg3 {[%clk 0:01:54]}  a3 {[%clk 0:00:10]} 88. Kg4 {[%clk 0:01:54]}  Kc4 {[%clk 0:00:09]} 89. Be5 {[%clk 0:01:49]}  Kd5 {[%clk 0:00:10]} 90. Ba1 {[%clk 0:01:49]}  Ke6 {[%clk 0:00:11]} 91. Kg5 {[%clk 0:01:49]}  Kf7 {[%clk 0:00:12]} 92. Kh6 {[%clk 0:01:49]}  g5 {[%clk 0:00:12]} 93. hxg5 {[%clk 0:01:47]} 1-0


[Site "https://www.chess.com"]

[Event "Titled Tuesday Blitz February 07 Late 2023"]
[White "Dzierzak, Radoslaw"]
[Black "Goroshkov, Maksym"]
[WhiteFideId "1161407"]
[BlackFideId "14142716"]
[WhiteElo "2220"]
[BlackElo "2287"]
[Result "0-1"]
[Round "07"]
[TimeControl "180+2"]
[Date "2023.02.07"]
[WhiteClock "0:00:02"]
[BlackClock "0:00:43"]

1. e4 {[%clk 0:02:19]}  e5 {[%clk 0:02:56]} 2. Nf3 {[%clk 0:02:19]}  d6 {[%clk 0:02:57]} 3. d4 {[%clk 0:02:18]}  Bg4 {[%clk 0:02:58]} 4. dxe5 {[%clk 0:02:18]}  Nd7 {[%clk 0:02:59]} 5. exd6 {[%clk 0:02:17]}  Bxd6 {[%clk 0:02:59]} 6. h3 {[%clk 0:02:17]}  Bh5 {[%clk 0:02:59]} 7. Nc3 {[%clk 0:02:12]}  Ngf6 {[%clk 0:02:59]} 8. g4 {[%clk 0:02:06]}  Bg6 {[%clk 0:02:59]} 9. Bd3 {[%clk 0:02:07]}  Qe7 {[%clk 0:02:58]} 10. Qe2 {[%clk 0:02:06]}  O-O-O {[%clk 0:02:58]} 11. Nh4 {[%clk 0:02:02]}  Nc5 {[%clk 0:02:42]} 12. Nxg6 {[%clk 0:02:01]}  hxg6 {[%clk 0:02:43]} 13. Be3 {[%clk 0:01:57]}  Ncxe4 {[%clk 0:02:41]} 14. Nxe4 {[%clk 0:01:49]}  Nxe4 {[%clk 0:02:42]} 15. Bxa7 {[%clk 0:01:35]}  Bb4+ {[%clk 0:02:18]} 16. c3 {[%clk 0:01:21]}  Rxd3 {[%clk 0:02:17]} 17. Qxd3 {[%clk 0:01:20]}  Nxc3+ {[%clk 0:02:13]} 18. Kf1 {[%clk 0:01:13]}  Ne4 {[%clk 0:02:10]} 19. a3 {[%clk 0:01:02]}  Rd8 {[%clk 0:02:07]} 20. Qe3 {[%clk 0:00:55]}  Bd6 {[%clk 0:01:45]} 21. Re1 {[%clk 0:00:50]}  f5 {[%clk 0:01:45]} 22. Kg2 {[%clk 0:00:49]}  Qh4 {[%clk 0:01:32]} 23. Qf3 {[%clk 0:00:35]}  Rf8 {[%clk 0:01:22]} 24. gxf5 {[%clk 0:00:27]}  gxf5 {[%clk 0:01:22]} 25. Be3 {[%clk 0:00:24]}  Rf6 {[%clk 0:01:16]} 26. Kf1 {[%clk 0:00:20]}  Bc5 {[%clk 0:01:12]} 27. Ke2 {[%clk 0:00:18]}  Bxe3 {[%clk 0:01:02]} 28. Qxe3 {[%clk 0:00:18]}  Re6 {[%clk 0:00:59]} 29. Kf1 {[%clk 0:00:18]}  f4 {[%clk 0:00:54]} 30. Qd4 {[%clk 0:00:12]}  f3 {[%clk 0:00:54]} 31. Rxe4 {[%clk 0:00:02]}  Rxe4 {[%clk 0:00:48]} 32. Qxg7 {[%clk 0:00:02]}  b6 {[%clk 0:00:44]} 33. Qg8+ {[%clk 0:00:02]}  Kb7 {[%clk 0:00:44]} 34. Qd5+ {[%clk 0:00:02]}  Ka7 {[%clk 0:00:45]} 35. Qd7 {[%clk 0:00:02]}  Rc4 {[%clk 0:00:43]} 36. Kg1 {[%clk 0:00:01]}  Rc1+ {[%clk 0:00:43]} 37. Kh2 {[%clk 0:00:02]}  Qxf2# {[%clk 0:00:43]} 0-1


[Site "https://www.chess.com"]

[Event "Titled Tuesday Blitz February 07 Late 2023"]
[White "Mesa Cruz, Juan Carlos"]
[Black "Chan, Luis"]
[WhiteFideId "6423400"]
[BlackFideId "3216357"]
[WhiteElo "2122"]
[BlackElo "2208"]
[Result "0-1"]
[Round "07"]
[TimeControl "180+2"]
[Date "2023.02.07"]
[WhiteClock "0:00:58"]
[BlackClock "0:00:25"]

1. e4 {[%clk 0:03:00]}  e6 {[%clk 0:02:58]} 2. Qe2 {[%clk 0:03:00]}  Be7 {[%clk 0:02:57]} 3. Nf3 {[%clk 0:03:00]}  d5 {[%clk 0:02:56]} 4. exd5 {[%clk 0:03:00]}  exd5 {[%clk 0:02:56]} 5. g3 {[%clk 0:03:00]}  Nf6 {[%clk 0:02:57]} 6. Bg2 {[%clk 0:03:00]}  O-O {[%clk 0:02:57]} 7. O-O {[%clk 0:03:01]}  Re8 {[%clk 0:02:51]} 8. d3 {[%clk 0:03:01]}  Bg4 {[%clk 0:02:39]} 9. h3 {[%clk 0:02:56]}  Bh5 {[%clk 0:02:38]} 10. Qd1 {[%clk 0:02:48]}  Nc6 {[%clk 0:02:28]} 11. c3 {[%clk 0:02:45]}  d4 {[%clk 0:02:23]} 12. c4 {[%clk 0:02:44]}  h6 {[%clk 0:02:19]} 13. Bf4 {[%clk 0:02:40]}  Bd6 {[%clk 0:02:16]} 14. Bxd6 {[%clk 0:02:40]}  Qxd6 {[%clk 0:02:16]} 15. a3 {[%clk 0:02:34]}  a5 {[%clk 0:02:16]} 16. Nbd2 {[%clk 0:02:27]}  Bg6 {[%clk 0:02:04]} 17. Qc2 {[%clk 0:02:12]}  Nd7 {[%clk 0:01:58]} 18. Rfe1 {[%clk 0:02:09]}  Nc5 {[%clk 0:01:58]} 19. Ne4 {[%clk 0:02:02]}  Nxe4 {[%clk 0:01:31]} 20. dxe4 {[%clk 0:02:03]}  d3 {[%clk 0:01:32]} 21. Qc3 {[%clk 0:01:50]}  Bxe4 {[%clk 0:01:31]} 22. Rad1 {[%clk 0:01:49]}  Rad8 {[%clk 0:01:29]} 23. Re3 {[%clk 0:01:45]}  Bxf3 {[%clk 0:01:22]} 24. Rxf3 {[%clk 0:01:42]}  Nd4 {[%clk 0:01:17]} 25. Kh2 {[%clk 0:01:20]}  Nxf3+ {[%clk 0:01:16]} 26. Bxf3 {[%clk 0:01:21]}  b6 {[%clk 0:01:13]} 27. Bd5 {[%clk 0:01:19]}  c6 {[%clk 0:01:09]} 28. Bf3 {[%clk 0:01:19]}  d2 {[%clk 0:01:06]} 29. Kg2 {[%clk 0:01:17]}  Re6 {[%clk 0:00:56]} 30. Qb3 {[%clk 0:01:15]}  Qd4 {[%clk 0:00:51]} 31. Qc2 {[%clk 0:01:08]}  Re1 {[%clk 0:00:49]} 32. b4 {[%clk 0:01:07]}  Rxd1 {[%clk 0:00:48]} 33. Bxd1 {[%clk 0:01:08]}  Qd3 {[%clk 0:00:40]} 34. Qxd3 {[%clk 0:01:02]}  Rxd3 {[%clk 0:00:41]} 35. c5 {[%clk 0:01:02]}  bxc5 {[%clk 0:00:40]} 36. bxa5 {[%clk 0:01:03]}  Rxa3 {[%clk 0:00:40]} 37. Kf1 {[%clk 0:01:01]}  Rxa5 {[%clk 0:00:35]} 38. Ke2 {[%clk 0:01:02]}  Ra2 {[%clk 0:00:36]} 39. Kd3 {[%clk 0:01:02]}  Kf8 {[%clk 0:00:30]} 40. f4 {[%clk 0:01:00]}  Ke7 {[%clk 0:00:30]} 41. g4 {[%clk 0:00:58]}  f5 {[%clk 0:00:25]} 0-1


[Site "https://www.chess.com"]

[Event "Titled Tuesday Blitz February 07 Late 2023"]
[White "Aguilar, Juan"]
[Black "Aggelis, Nikolaos"]
[WhiteFideId "3800091"]
[BlackFideId "4213220"]
[WhiteElo "2254"]
[BlackElo "2270"]
[Result "0-1"]
[Round "07"]
[TimeControl "180+2"]
[Date "2023.02.07"]
[WhiteClock "0:00:03"]
[BlackClock "0:01:26"]

1. Nf3 {[%clk 0:03:00]}  Nf6 {[%clk 0:02:59]} 2. g3 {[%clk 0:03:01]}  g6 {[%clk 0:03:00]} 3. Bg2 {[%clk 0:03:02]}  Bg7 {[%clk 0:03:01]} 4. O-O {[%clk 0:03:02]}  O-O {[%clk 0:03:02]} 5. d3 {[%clk 0:03:03]}  d5 {[%clk 0:03:03]} 6. Nc3 {[%clk 0:03:02]}  Nc6 {[%clk 0:03:01]} 7. e4 {[%clk 0:02:52]}  e5 {[%clk 0:03:01]} 8. exd5 {[%clk 0:02:50]}  Nxd5 {[%clk 0:02:58]} 9. Nxe5 {[%clk 0:02:48]}  Nxc3 {[%clk 0:02:57]} 10. Nxc6 {[%clk 0:02:48]}  Nxd1 {[%clk 0:02:58]} 11. Nxd8 {[%clk 0:02:48]}  Nxb2 {[%clk 0:02:58]} 12. Bxb2 {[%clk 0:02:19]}  Bxb2 {[%clk 0:02:47]} 13. Rab1 {[%clk 0:02:19]}  Rxd8 {[%clk 0:02:42]} 14. Rxb2 {[%clk 0:02:19]}  c6 {[%clk 0:02:43]} 15. Re1 {[%clk 0:02:17]}  Kf8 {[%clk 0:02:42]} 16. h4 {[%clk 0:02:02]}  Re8 {[%clk 0:02:40]} 17. Rxe8+ {[%clk 0:01:58]}  Kxe8 {[%clk 0:02:41]} 18. h5 {[%clk 0:01:58]}  Kd8 {[%clk 0:02:39]} 19. h6 {[%clk 0:01:56]}  Kc7 {[%clk 0:02:37]} 20. a4 {[%clk 0:01:45]}  Bd7 {[%clk 0:02:28]} 21. Rb4 {[%clk 0:01:36]}  a5 {[%clk 0:02:24]} 22. Rf4 {[%clk 0:01:36]}  Be6 {[%clk 0:02:23]} 23. Rd4 {[%clk 0:00:59]}  Ra6 {[%clk 0:02:18]} 24. f4 {[%clk 0:00:52]}  b5 {[%clk 0:02:15]} 25. Kf2 {[%clk 0:00:48]}  b4 {[%clk 0:02:08]} 26. Re4 {[%clk 0:00:33]}  c5 {[%clk 0:02:03]} 27. Re5 {[%clk 0:00:32]}  Kd6 {[%clk 0:02:02]} 28. Bf3 {[%clk 0:00:24]}  Rb6 {[%clk 0:02:00]} 29. Ke1 {[%clk 0:00:19]}  b3 {[%clk 0:02:00]} 30. cxb3 {[%clk 0:00:19]}  Rxb3 {[%clk 0:02:01]} 31. Kd2 {[%clk 0:00:19]}  Ra3 {[%clk 0:02:01]} 32. Re4 {[%clk 0:00:16]}  Bd5 {[%clk 0:01:57]} 33. Re3 {[%clk 0:00:15]}  Bxf3 {[%clk 0:01:57]} 34. Rxf3 {[%clk 0:00:16]}  Rxa4 {[%clk 0:01:57]} 35. f5 {[%clk 0:00:17]}  g5 {[%clk 0:01:50]} 36. Re3 {[%clk 0:00:17]}  Ra2+ {[%clk 0:01:44]} 37. Ke1 {[%clk 0:00:14]}  Rh2 {[%clk 0:01:45]} 38. Re8 {[%clk 0:00:07]}  Rxh6 {[%clk 0:01:44]} 39. Ra8 {[%clk 0:00:08]}  Ke5 {[%clk 0:01:41]} 40. Rxa5 {[%clk 0:00:08]}  Rc6 {[%clk 0:01:41]} 41. Kf2 {[%clk 0:00:05]}  Kxf5 {[%clk 0:01:40]} 42. d4 {[%clk 0:00:06]}  Kg4 {[%clk 0:01:38]} 43. Rxc5 {[%clk 0:00:05]}  Rd6 {[%clk 0:01:37]} 44. d5 {[%clk 0:00:04]}  h5 {[%clk 0:01:32]} 45. Kg2 {[%clk 0:00:02]}  Kf5 {[%clk 0:01:32]} 46. Kf3 {[%clk 0:00:02]}  Ke5 {[%clk 0:01:31]} 47. Rc7 {[%clk 0:00:03]}  Rf6+ {[%clk 0:01:30]} 48. Ke3 {[%clk 0:00:02]}  Kxd5 {[%clk 0:01:30]} 49. Ra7 {[%clk 0:00:02]}  Ke5 {[%clk 0:01:30]} 50. Ra5+ {[%clk 0:00:02]}  Ke6 {[%clk 0:01:29]} 51. Rxg5 {[%clk 0:00:03]}  Rf5 {[%clk 0:01:29]} 52. Rg8 {[%clk 0:00:02]}  Kf6 {[%clk 0:01:29]} 53. Rh8 {[%clk 0:00:03]}  Kg7 {[%clk 0:01:28]} 54. Rc8 {[%clk 0:00:02]}  Kf6 {[%clk 0:01:28]} 55. Rc6+ {[%clk 0:00:02]}  Kg5 {[%clk 0:01:28]} 56. Rc8 {[%clk 0:00:03]}  Kg4 {[%clk 0:01:27]} 57. Rg8+ {[%clk 0:00:04]}  Rg5 {[%clk 0:01:28]} 58. Rh8 {[%clk 0:00:03]}  Kxg3 {[%clk 0:01:27]} 59. Ke4 {[%clk 0:00:04]}  h4 {[%clk 0:01:26]} 60. Rf8 {[%clk 0:00:03]}  Rg7 {[%clk 0:01:26]} 0-1


[Site "https://www.chess.com"]

[Event "Titled Tuesday Blitz February 07 Late 2023"]
[White "Veiga, Jose Francisco R P Neves"]
[Black "Gomes, Luiz Alexandre de Souza"]
[WhiteFideId "1930087"]
[BlackFideId "2102790"]
[WhiteElo "2406"]
[BlackElo "2254"]
[Result "1/2-1/2"]
[Round "07"]
[TimeControl "180+2"]
[Date "2023.02.07"]
[WhiteClock "0:00:10"]
[BlackClock "0:00:30"]

1. e4 {[%clk 0:02:27]}  c5 {[%clk 0:02:59]} 2. Nf3 {[%clk 0:02:26]}  d6 {[%clk 0:03:00]} 3. Bb5+ {[%clk 0:02:25]}  Nd7 {[%clk 0:02:59]} 4. d4 {[%clk 0:02:23]}  cxd4 {[%clk 0:02:58]} 5. Nxd4 {[%clk 0:02:24]}  a6 {[%clk 0:02:58]} 6. Bd3 {[%clk 0:02:23]}  e6 {[%clk 0:02:58]} 7. O-O {[%clk 0:02:23]}  Qc7 {[%clk 0:02:59]} 8. c4 {[%clk 0:02:23]}  Ngf6 {[%clk 0:02:59]} 9. Nc3 {[%clk 0:02:21]}  Be7 {[%clk 0:02:59]} 10. b3 {[%clk 0:02:12]}  O-O {[%clk 0:02:59]} 11. Bb2 {[%clk 0:02:11]}  b6 {[%clk 0:03:00]} 12. Rc1 {[%clk 0:02:11]}  Bb7 {[%clk 0:03:00]} 13. Kh1 {[%clk 0:02:09]}  Rac8 {[%clk 0:03:00]} 14. f3 {[%clk 0:02:09]}  Rfd8 {[%clk 0:02:58]} 15. Qe2 {[%clk 0:02:09]}  Qb8 {[%clk 0:02:57]} 16. Rfd1 {[%clk 0:02:09]}  Nf8 {[%clk 0:02:50]} 17. Qe3 {[%clk 0:02:05]}  Ng6 {[%clk 0:02:46]} 18. Bf1 {[%clk 0:02:04]}  Bf8 {[%clk 0:02:45]} 19. b4 {[%clk 0:02:00]}  d5 {[%clk 0:02:44]} 20. cxd5 {[%clk 0:01:55]}  exd5 {[%clk 0:02:44]} 21. Nxd5 {[%clk 0:01:54]}  Nxd5 {[%clk 0:02:44]} 22. exd5 {[%clk 0:01:54]}  Bxd5 {[%clk 0:02:45]} 23. Rxc8 {[%clk 0:01:53]}  Qxc8 {[%clk 0:02:39]} 24. a3 {[%clk 0:01:48]}  b5 {[%clk 0:02:37]} 25. Rc1 {[%clk 0:01:46]}  Qd7 {[%clk 0:02:29]} 26. Qg5 {[%clk 0:01:22]}  h6 {[%clk 0:02:24]} 27. Qf5 {[%clk 0:01:20]}  Qe7 {[%clk 0:02:16]} 28. Qb1 {[%clk 0:00:49]}  Qh4 {[%clk 0:02:11]} 29. Nf5 {[%clk 0:00:46]}  Qf4 {[%clk 0:02:10]} 30. Qd3 {[%clk 0:00:39]}  Ne5 {[%clk 0:01:54]} 31. Qd4 {[%clk 0:00:34]}  Qxf5 {[%clk 0:01:47]} 32. Qxe5 {[%clk 0:00:34]}  Qxe5 {[%clk 0:01:36]} 33. Bxe5 {[%clk 0:00:35]}  Be6 {[%clk 0:01:37]} 34. Kg1 {[%clk 0:00:31]}  f6 {[%clk 0:01:33]} 35. Bf4 {[%clk 0:00:30]}  Bd6 {[%clk 0:01:27]} 36. Bxd6 {[%clk 0:00:28]}  Rxd6 {[%clk 0:01:28]} 37. Kf2 {[%clk 0:00:28]}  Rd2+ {[%clk 0:01:26]} 38. Ke3 {[%clk 0:00:28]}  Ra2 {[%clk 0:01:25]} 39. Rc6 {[%clk 0:00:26]}  Rxa3+ {[%clk 0:01:23]} 40. Kd4 {[%clk 0:00:25]}  Kf7 {[%clk 0:01:19]} 41. Bd3 {[%clk 0:00:20]}  Ra4 {[%clk 0:01:13]} 42. Kc5 {[%clk 0:00:20]}  Ra3 {[%clk 0:01:11]} 43. Be4 {[%clk 0:00:19]}  f5 {[%clk 0:01:04]} 44. Rc7+ {[%clk 0:00:19]}  Kf6 {[%clk 0:01:04]} 45. Bb7 {[%clk 0:00:20]}  Ra2 {[%clk 0:00:59]} 46. f4 {[%clk 0:00:20]}  g5 {[%clk 0:00:54]} 47. fxg5+ {[%clk 0:00:19]}  hxg5 {[%clk 0:00:55]} 48. h3 {[%clk 0:00:19]}  a5 {[%clk 0:00:52]} 49. bxa5 {[%clk 0:00:17]}  Rxa5 {[%clk 0:00:52]} 50. Kb4 {[%clk 0:00:17]}  Ra7 {[%clk 0:00:50]} 51. Kxb5 {[%clk 0:00:17]}  Ke5 {[%clk 0:00:41]} 52. Kb6 {[%clk 0:00:16]}  Ra2 {[%clk 0:00:41]} 53. Bf3 {[%clk 0:00:14]}  Rb2+ {[%clk 0:00:39]} 54. Kc5 {[%clk 0:00:13]}  Rc2+ {[%clk 0:00:38]} 55. Kb6 {[%clk 0:00:14]}  Rxc7 {[%clk 0:00:37]} 56. Kxc7 {[%clk 0:00:14]}  Kf4 {[%clk 0:00:38]} 57. Kd6 {[%clk 0:00:14]}  Bc4 {[%clk 0:00:37]} 58. Ke7 {[%clk 0:00:14]}  Bf1 {[%clk 0:00:34]} 59. Kf6 {[%clk 0:00:13]}  g4 {[%clk 0:00:34]} 60. hxg4 {[%clk 0:00:14]}  fxg4 {[%clk 0:00:35]} 61. Bb7 {[%clk 0:00:14]}  g3 {[%clk 0:00:31]} 62. Kg6 {[%clk 0:00:12]}  Ke3 {[%clk 0:00:32]} 63. Kg5 {[%clk 0:00:12]}  Kf2 {[%clk 0:00:33]} 64. Kf4 {[%clk 0:00:11]}  Bxg2 {[%clk 0:00:32]} 65. Bc8 {[%clk 0:00:10]}  Bf1 {[%clk 0:00:30]} 66. Bb7 {[%clk 0:00:10]}  Bg2 {[%clk 0:00:30]} 67. Bc8 {[%clk 0:00:10]}  Bf3 {[%clk 0:00:30]} 68. Bh3 {[%clk 0:00:10]}  Bg2 {[%clk 0:00:30]} 69. Bc8 {[%clk 0:00:10]} 1/2-1/2


[Site "https://www.chess.com"]

[Event "Titled Tuesday Blitz February 07 Late 2023"]
[White "Van Dael, Siem"]
[Black "ArchibaldCerveza29"]
[WhiteFideId "1049771"]
[WhiteElo "2319"]
[BlackElo "2520"]
[Result "1-0"]
[Round "07"]
[TimeControl "180+2"]
[Date "2023.02.07"]
[WhiteClock "0:00:11"]
[BlackClock "0:00:20"]

1. e4 {[%clk 0:03:00]}  e5 {[%clk 0:03:00]} 2. Nf3 {[%clk 0:03:00]}  Nc6 {[%clk 0:03:00]} 3. Bc4 {[%clk 0:02:57]}  Nf6 {[%clk 0:03:01]} 4. d3 {[%clk 0:02:55]}  Be7 {[%clk 0:03:01]} 5. O-O {[%clk 0:02:55]}  O-O {[%clk 0:03:01]} 6. Re1 {[%clk 0:02:55]}  d6 {[%clk 0:03:02]} 7. a4 {[%clk 0:02:56]}  Na5 {[%clk 0:03:02]} 8. Ba2 {[%clk 0:02:55]}  c5 {[%clk 0:03:03]} 9. Nc3 {[%clk 0:02:55]}  Nc6 {[%clk 0:03:02]} 10. Bg5 {[%clk 0:02:54]}  a6 {[%clk 0:03:02]} 11. Bxf6 {[%clk 0:02:54]}  Bxf6 {[%clk 0:03:03]} 12. Nd5 {[%clk 0:02:54]}  g6 {[%clk 0:03:03]} 13. c3 {[%clk 0:02:55]}  Bg7 {[%clk 0:02:58]} 14. h3 {[%clk 0:02:55]}  b5 {[%clk 0:02:55]} 15. Bb3 {[%clk 0:02:51]}  Be6 {[%clk 0:02:51]} 16. axb5 {[%clk 0:02:43]}  axb5 {[%clk 0:02:52]} 17. Rxa8 {[%clk 0:02:43]}  Qxa8 {[%clk 0:02:53]} 18. Nc7 {[%clk 0:02:43]}  Qc8 {[%clk 0:02:17]} 19. Nxe6 {[%clk 0:02:35]}  fxe6 {[%clk 0:02:17]} 20. Ng5 {[%clk 0:02:36]}  Rf6 {[%clk 0:02:13]} 21. Qg4 {[%clk 0:02:34]}  Nd8 {[%clk 0:02:00]} 22. Ra1 {[%clk 0:02:24]}  c4 {[%clk 0:02:00]} 23. Bc2 {[%clk 0:02:19]}  Qc5 {[%clk 0:01:57]} 24. Ra8 {[%clk 0:02:14]}  Qxf2+ {[%clk 0:01:55]} 25. Kh1 {[%clk 0:02:10]}  Rf8 {[%clk 0:01:51]} 26. Rxd8 {[%clk 0:01:49]}  h6 {[%clk 0:00:27]} 27. Qxe6+ {[%clk 0:01:33]}  Kh8 {[%clk 0:00:26]} 28. Rxf8+ {[%clk 0:00:25]}  Bxf8 {[%clk 0:00:26]} 29. Qf7 {[%clk 0:00:14]}  Qe1+ {[%clk 0:00:27]} 30. Kh2 {[%clk 0:00:14]}  hxg5 {[%clk 0:00:28]} 31. Qxf8+ {[%clk 0:00:14]}  Kh7 {[%clk 0:00:29]} 32. Qf7+ {[%clk 0:00:14]}  Kh6 {[%clk 0:00:29]} 33. Qf8+ {[%clk 0:00:14]}  Kh7 {[%clk 0:00:29]} 34. Qe7+ {[%clk 0:00:15]}  Kh6 {[%clk 0:00:29]} 35. dxc4 {[%clk 0:00:12]}  Qd2 {[%clk 0:00:24]} 36. Qf8+ {[%clk 0:00:12]}  Kh7 {[%clk 0:00:24]} 37. Qf7+ {[%clk 0:00:11]}  Kh6 {[%clk 0:00:23]} 38. Bb3 {[%clk 0:00:11]}  bxc4 {[%clk 0:00:20]} 39. Bxc4 {[%clk 0:00:11]}  Qxb2 {[%clk 0:00:20]} 40. Bd5 {[%clk 0:00:09]}  Qxc3 {[%clk 0:00:19]} 41. Qf8+ {[%clk 0:00:09]}  Kh7 {[%clk 0:00:17]} 42. Bg8+ {[%clk 0:00:09]}  Kh8 {[%clk 0:00:18]} 43. Bf7+ {[%clk 0:00:10]}  Kh7 {[%clk 0:00:19]} 44. Qg8+ {[%clk 0:00:10]}  Kh6 {[%clk 0:00:20]} 45. Qh8# {[%clk 0:00:11]} 1-0


[Site "https://www.chess.com"]